[Event "Early-Titled-Tuesday-Blitz-February-27-2024"]
[Site "Chess.com"]
[Date "2024.02.27"]
[Round "7"]
[White "dretch"]
[Black "AlexTruskavetsky"]
[Result "1-0"]
[WhiteElo "2884"]
[BlackElo "2742"]
[TimeControl "180+1"]
[EndTime "9:17:17 PST"]
[Termination "dretch won by resignation"]

1. d4 {[%clk 0:03:00.9]} 1... Nf6 {[%clk 0:02:54.6]} 2. c4 {[%clk 0:03:00.9]}
2... e6 {[%clk 0:02:50.3]} 3. Nf3 {[%clk 0:03:01.2]} 3... d5 {[%clk 0:02:50.3]}
4. Nc3 {[%clk 0:03:00]} 4... c6 {[%clk 0:02:50.5]} 5. cxd5 {[%clk 0:02:58]} 5...
exd5 {[%clk 0:02:50.5]} 6. Bg5 {[%clk 0:02:55.4]} 6... Be7 {[%clk 0:02:48.9]} 7.
Qc2 {[%clk 0:02:54.8]} 7... h6 {[%clk 0:02:48.8]} 8. Bh4 {[%clk 0:02:54.1]} 8...
O-O {[%clk 0:02:49.4]} 9. e3 {[%clk 0:02:54.2]} 9... Re8 {[%clk 0:02:48.1]} 10.
Bd3 {[%clk 0:02:54.1]} 10... Ne4 {[%clk 0:02:44.9]} 11. Bxe7 {[%clk 0:02:53]}
11... Qxe7 {[%clk 0:02:45.8]} 12. O-O {[%clk 0:02:52.9]} 12... Bf5 {[%clk
0:02:36.6]} 13. Rfe1 {[%clk 0:02:42.7]} 13... Nd7 {[%clk 0:02:36.3]} 14. Nd2
{[%clk 0:02:39.7]} 14... Ndf6 {[%clk 0:02:11.3]} 15. f3 {[%clk 0:02:39.4]} 15...
Nxd2 {[%clk 0:02:11.5]} 16. Bxf5 {[%clk 0:02:39.5]} 16... Nc4 {[%clk 0:02:11.6]}
17. Bd3 {[%clk 0:02:39.6]} 17... Nb6 {[%clk 0:01:58.7]} 18. Rad1 {[%clk
0:02:37.3]} 18... c5 {[%clk 0:01:53.9]} 19. Qf2 {[%clk 0:02:32.8]} 19... cxd4
{[%clk 0:01:52]} 20. exd4 {[%clk 0:02:31.2]} 20... Qd6 {[%clk 0:01:52.5]} 21. g3
{[%clk 0:02:15.4]} 21... g6 {[%clk 0:01:51.6]} 22. Kg2 {[%clk 0:02:14.6]} 22...
Kg7 {[%clk 0:01:52]} 23. Nb5 {[%clk 0:02:12.7]} 23... Qd7 {[%clk 0:01:50.4]} 24.
Re5 {[%clk 0:02:11.8]} 24... a6 {[%clk 0:01:50.6]} 25. Nc3 {[%clk 0:02:10]}
25... Qd6 {[%clk 0:01:51.2]} 26. Rde1 {[%clk 0:02:05.8]} 26... Nbd7 {[%clk
0:01:51.3]} 27. Rxe8 {[%clk 0:01:24.8]} 27... Rxe8 {[%clk 0:01:52.2]} 28. Rc1
{[%clk 0:01:14.1]} 28... Nf8 {[%clk 0:01:43.7]} 29. Bc2 {[%clk 0:01:11.5]} 29...
Ne6 {[%clk 0:01:42.4]} 30. Bb3 {[%clk 0:01:11.1]} 30... Rd8 {[%clk 0:01:33.5]}
31. Qe3 {[%clk 0:01:08.5]} 31... Nc7 {[%clk 0:00:45.1]} 32. Qe5 {[%clk
0:01:03.1]} 32... Qxe5 {[%clk 0:00:22.2]} 33. dxe5 {[%clk 0:01:02.1]} 33... Nd7
{[%clk 0:00:22.1]} 34. Na4 {[%clk 0:00:40.7]} 34... Ne6 {[%clk 0:00:18.4]} 35.
f4 {[%clk 0:00:37.3]} 35... Nb8 {[%clk 0:00:18.7]} 36. Nb6 {[%clk 0:00:31.2]}
36... Nc6 {[%clk 0:00:07.8]} 37. Bxd5 {[%clk 0:00:28.6]} 37... Ned4 {[%clk
0:00:08.2]} 38. Kf2 {[%clk 0:00:22.1]} 38... f6 {[%clk 0:00:06.4]} 39. exf6+
{[%clk 0:00:19]} 39... Kxf6 {[%clk 0:00:07.3]} 40. Be4 {[%clk 0:00:18.2]} 40...
Ne7 {[%clk 0:00:01.7]} 41. Rc7 {[%clk 0:00:14.8]} 41... Ne6 {[%clk 0:00:02.4]}
42. Rd7 {[%clk 0:00:13.5]} 42... Rxd7 {[%clk 0:00:02.5]} 43. Nxd7+ {[%clk
0:00:13.7]} 43... Kg7 {[%clk 0:00:03.3]} 44. Bxb7 {[%clk 0:00:14.4]} 44... Nf5
{[%clk 0:00:03.1]} 45. Bxa6 {[%clk 0:00:13.8]} 45... Nc7 {[%clk 0:00:04]} 46.
Bc4 {[%clk 0:00:13.9]} 46... Nd6 {[%clk 0:00:04.5]} 47. b3 {[%clk 0:00:14.4]}
47... g5 {[%clk 0:00:03.8]} 48. a4 {[%clk 0:00:14.5]} 48... Nb7 {[%clk
0:00:02.7]} 49. fxg5 {[%clk 0:00:13.9]} 49... Nd6 {[%clk 0:00:03.6]} 50. gxh6+
{[%clk 0:00:14]} 50... Kxh6 {[%clk 0:00:04.5]} 51. a5 {[%clk 0:00:14.5]} 51...
Kg5 {[%clk 0:00:04.1]} 52. a6 {[%clk 0:00:14.4]} 52... Nxc4 {[%clk 0:00:04.6]}
53. bxc4 {[%clk 0:00:14.9]} 53... Nxa6 {[%clk 0:00:05.3]} 54. Ke3 {[%clk
0:00:15.4]} 54... Nb4 {[%clk 0:00:05.5]} 55. h3 {[%clk 0:00:15.2]} 55... Kf5
{[%clk 0:00:05.4]} 56. Nc5 {[%clk 0:00:15]} 56... Ke5 {[%clk 0:00:05.4]} 57.
Nd3+ {[%clk 0:00:15.3]} 57... Nxd3 {[%clk 0:00:06.1]} 58. Kxd3 {[%clk
0:00:15.8]} 1-0

[Event "Early-Titled-Tuesday-Blitz-February-27-2024"]
[Site "Chess.com"]
[Date "2024.02.27"]
[Round "7"]
[White "Sam_ChessMood"]
[Black "SahibSinghKnight"]
[Result "1-0"]
[WhiteElo "2939"]
[BlackElo "2570"]
[TimeControl "180+1"]
[EndTime "9:17:18 PST"]
[Termination "Sam_ChessMood won by resignation"]

1. d4 {[%clk 0:03:00.2]} 1... d5 {[%clk 0:02:56.5]} 2. c4 {[%clk 0:03:00.4]}
2... e6 {[%clk 0:02:56.3]} 3. Nf3 {[%clk 0:03:00]} 3... Nf6 {[%clk 0:02:55.7]}
4. Nc3 {[%clk 0:03:00.2]} 4... Be7 {[%clk 0:02:53.7]} 5. Bf4 {[%clk 0:02:58.7]}
5... O-O {[%clk 0:02:52.8]} 6. e3 {[%clk 0:02:59.1]} 6... b6 {[%clk 0:02:51.9]}
7. cxd5 {[%clk 0:02:57.4]} 7... Nxd5 {[%clk 0:02:51.5]} 8. Nxd5 {[%clk
0:02:57.3]} 8... Qxd5 {[%clk 0:02:52.4]} 9. a3 {[%clk 0:02:55.9]} 9... c5 {[%clk
0:02:47.1]} 10. Be2 {[%clk 0:02:51.7]} 10... Ba6 {[%clk 0:02:39]} 11. Bxa6
{[%clk 0:02:42]} 11... Nxa6 {[%clk 0:02:39.9]} 12. O-O {[%clk 0:02:42.3]} 12...
cxd4 {[%clk 0:02:37.5]} 13. Qxd4 {[%clk 0:02:31.7]} 13... Qxd4 {[%clk
0:02:32.1]} 14. exd4 {[%clk 0:02:31.9]} 14... Rac8 {[%clk 0:02:30.8]} 15. Rac1
{[%clk 0:02:31.5]} 15... Rfd8 {[%clk 0:02:23.5]} 16. Rfd1 {[%clk 0:02:23.7]}
16... f6 {[%clk 0:02:12]} 17. h4 {[%clk 0:02:17.4]} 17... Kf7 {[%clk 0:02:08]}
18. Kf1 {[%clk 0:02:17.7]} 18... g6 {[%clk 0:01:58.4]} 19. Ke2 {[%clk
0:02:17.7]} 19... Bf8 {[%clk 0:01:40]} 20. g4 {[%clk 0:02:15.9]} 20... h6 {[%clk
0:01:32.6]} 21. g5 {[%clk 0:02:14.9]} 21... hxg5 {[%clk 0:01:31.8]} 22. hxg5
{[%clk 0:02:15.1]} 22... Rxc1 {[%clk 0:01:30.1]} 23. Rxc1 {[%clk 0:02:14.4]}
23... Bd6 {[%clk 0:01:30.3]} 24. Bxd6 {[%clk 0:02:07.8]} 24... Rxd6 {[%clk
0:01:31.2]} 25. Rc8 {[%clk 0:02:00.7]} 25... fxg5 {[%clk 0:01:14.5]} 26. b4
{[%clk 0:01:53.5]} 26... b5 {[%clk 0:01:03]} 27. Ra8 {[%clk 0:01:49.5]} 27...
Kf6 {[%clk 0:01:01.4]} 28. Rxa7 {[%clk 0:01:44.9]} 28... Nb8 {[%clk 0:00:54.3]}
29. Nd2 {[%clk 0:01:34.4]} 29... Rxd4 {[%clk 0:00:51.9]} 30. Ke3 {[%clk
0:01:32.9]} 30... Rd5 {[%clk 0:00:28.5]} 31. Ne4+ {[%clk 0:01:30.8]} 31... Ke5
{[%clk 0:00:27.9]} 32. Rg7 {[%clk 0:01:24.4]} 32... Nc6 {[%clk 0:00:21.2]} 33.
Nc3 {[%clk 0:01:01.4]} 33... Nd4 {[%clk 0:00:08.2]} 34. Rxg6 {[%clk 0:00:55.5]}
34... Nf5+ {[%clk 0:00:09.1]} 35. Ke2 {[%clk 0:00:54.8]} 35... Nd4+ {[%clk
0:00:07.9]} 36. Kf1 {[%clk 0:00:49]} 36... Rd7 {[%clk 0:00:05.4]} 37. Rxg5+
{[%clk 0:00:43.8]} 37... Kf4 {[%clk 0:00:05.5]} 38. Rg3 {[%clk 0:00:38.8]} 38...
Ra7 {[%clk 0:00:05.2]} 39. Ne2+ {[%clk 0:00:38.5]} 39... Nxe2 {[%clk 0:00:05.3]}
40. Kxe2 {[%clk 0:00:39]} 40... Rc7 {[%clk 0:00:05.7]} 41. Rf3+ {[%clk
0:00:35.9]} 41... Ke4 {[%clk 0:00:06]} 42. Re3+ {[%clk 0:00:36.4]} 42... Kd5
{[%clk 0:00:06.5]} 43. f4 {[%clk 0:00:32.5]} 43... Rc2+ {[%clk 0:00:06.4]} 44.
Kf3 {[%clk 0:00:32.7]} 44... Ra2 {[%clk 0:00:04.2]} 45. Kg4 {[%clk 0:00:28.9]}
45... Kd6 {[%clk 0:00:02.3]} 46. Kg5 {[%clk 0:00:25.9]} 46... Rg2+ {[%clk
0:00:02.5]} 47. Kf6 {[%clk 0:00:26]} 47... Rf2 {[%clk 0:00:02.9]} 48. Rxe6+
{[%clk 0:00:25.7]} 48... Kd5 {[%clk 0:00:03.8]} 49. f5 {[%clk 0:00:24.3]} 49...
Rf3 {[%clk 0:00:04.4]} 50. Re5+ {[%clk 0:00:18.5]} 50... Kc4 {[%clk 0:00:04.3]}
51. Rc5+ {[%clk 0:00:18.5]} 51... Kb3 {[%clk 0:00:03.6]} 52. Rxb5 {[%clk
0:00:18.9]} 52... Kxa3 {[%clk 0:00:04.5]} 53. Rb8 {[%clk 0:00:18.5]} 53... Ka4
{[%clk 0:00:05.4]} 54. Ke6 {[%clk 0:00:18.6]} 54... Re3+ {[%clk 0:00:05.6]} 55.
Kf7 {[%clk 0:00:19]} 55... Re5 {[%clk 0:00:06]} 56. f6 {[%clk 0:00:19.4]} 1-0

[Event "Early-Titled-Tuesday-Blitz-February-27-2024"]
[Site "Chess.com"]
[Date "2024.02.27"]
[Round "7"]
[White "VitaliyChayka"]
[Black "aRk_iN"]
[Result "1-0"]
[WhiteElo "2515"]
[BlackElo "2252"]
[TimeControl "180+1"]
[EndTime "9:17:20 PST"]
[Termination "VitaliyChayka won on time"]

1. d4 {[%clk 0:03:00.9]} 1... d5 {[%clk 0:02:58.6]} 2. Bf4 {[%clk 0:03:00.9]}
2... c5 {[%clk 0:02:57.7]} 3. e3 {[%clk 0:03:01.6]} 3... Nf6 {[%clk 0:02:56.2]}
4. dxc5 {[%clk 0:03:01.7]} 4... Qa5+ {[%clk 0:02:55.4]} 5. Nc3 {[%clk
0:03:01.5]} 5... Qxc5 {[%clk 0:02:55.6]} 6. Nb5 {[%clk 0:03:02.2]} 6... Na6
{[%clk 0:02:54.5]} 7. c3 {[%clk 0:03:01.8]} 7... Bf5 {[%clk 0:02:49.4]} 8. Nf3
{[%clk 0:02:57.7]} 8... e6 {[%clk 0:02:48.8]} 9. Nbd4 {[%clk 0:02:54.3]} 9...
Bd6 {[%clk 0:02:20.1]} 10. Bb5+ {[%clk 0:02:39.8]} 10... Ke7 {[%clk 0:02:19.6]}
11. Nxf5+ {[%clk 0:02:28]} 11... exf5 {[%clk 0:02:20.5]} 12. Bxd6+ {[%clk
0:02:26.8]} 12... Qxd6 {[%clk 0:02:18.4]} 13. Nd4 {[%clk 0:02:13.1]} 13... g6
{[%clk 0:02:18.2]} 14. Bxa6 {[%clk 0:02:11.8]} 14... Qxa6 {[%clk 0:02:18.1]} 15.
Qb3 {[%clk 0:02:04.6]} 15... Rhd8 {[%clk 0:02:10.2]} 16. Qb4+ {[%clk 0:02:04.8]}
16... Ke8 {[%clk 0:02:06.4]} 17. f3 {[%clk 0:01:57.1]} 17... Rac8 {[%clk
0:02:04.1]} 18. Kf2 {[%clk 0:01:53.9]} 18... Rc4 {[%clk 0:01:59.6]} 19. Qb3
{[%clk 0:01:50.6]} 19... Kf8 {[%clk 0:01:59.9]} 20. h4 {[%clk 0:01:48.5]} 20...
h5 {[%clk 0:01:59.4]} 21. Rhd1 {[%clk 0:01:44.9]} 21... Kg7 {[%clk 0:01:59]} 22.
Rd2 {[%clk 0:01:45.6]} 22... Re8 {[%clk 0:01:49.4]} 23. Rad1 {[%clk 0:01:45.9]}
23... Re7 {[%clk 0:01:49]} 24. Ne2 {[%clk 0:01:39.9]} 24... Rxh4 {[%clk
0:01:47.3]} 25. Nf4 {[%clk 0:01:37.9]} 25... g5 {[%clk 0:01:03.8]} 26. Nxd5
{[%clk 0:01:30.8]} 26... Nxd5 {[%clk 0:01:01.8]} 27. Qxd5 {[%clk 0:01:26.5]}
27... Qb6 {[%clk 0:00:56.1]} 28. Re1 {[%clk 0:01:01.2]} 28... Rh1 {[%clk
0:00:32.4]} 29. Ree2 {[%clk 0:00:36]} 29... Qe6 {[%clk 0:00:26.2]} 30. Qxe6
{[%clk 0:00:32]} 30... fxe6 {[%clk 0:00:26.1]} 31. Re1 {[%clk 0:00:29.1]} 31...
Rxe1 {[%clk 0:00:25.4]} 32. Kxe1 {[%clk 0:00:30]} 32... Kf6 {[%clk 0:00:25.4]}
33. Rd8 {[%clk 0:00:30.1]} 33... h4 {[%clk 0:00:24.5]} 34. Ke2 {[%clk
0:00:29.4]} 34... a6 {[%clk 0:00:22.2]} 35. a4 {[%clk 0:00:28.9]} 35... Rg7
{[%clk 0:00:20.9]} 36. Rh8 {[%clk 0:00:26.7]} 36... Kg6 {[%clk 0:00:17.4]} 37.
c4 {[%clk 0:00:23.8]} 37... Kf6 {[%clk 0:00:17.7]} 38. b4 {[%clk 0:00:23.6]}
38... Rc7 {[%clk 0:00:18.2]} 39. Kd3 {[%clk 0:00:23.7]} 39... Ke5 {[%clk
0:00:17.4]} 40. b5 {[%clk 0:00:18.4]} 40... axb5 {[%clk 0:00:16.9]} 41. axb5
{[%clk 0:00:19.3]} 41... Rg7 {[%clk 0:00:14.7]} 42. Kc3 {[%clk 0:00:13.9]} 42...
g4 {[%clk 0:00:14.8]} 43. Rxh4 {[%clk 0:00:13.4]} 43... gxf3 {[%clk 0:00:12.4]}
44. gxf3 {[%clk 0:00:14.3]} 44... Rg3 {[%clk 0:00:12.1]} 45. Rh7 {[%clk
0:00:10.9]} 45... Rxf3 {[%clk 0:00:09.1]} 46. Rxb7 {[%clk 0:00:11]} 46... Rxe3+
{[%clk 0:00:09.4]} 47. Kb4 {[%clk 0:00:11.8]} 47... f4 {[%clk 0:00:03.4]} 48. c5
{[%clk 0:00:12.3]} 48... Re4+ {[%clk 0:00:02.9]} 49. Ka5 {[%clk 0:00:10.6]}
49... f3 {[%clk 0:00:03.8]} 50. Rh7 {[%clk 0:00:05.7]} 50... f2 {[%clk
0:00:03.1]} 51. Rh5+ {[%clk 0:00:03.2]} 51... Kd4 {[%clk 0:00:02]} 52. Rh1
{[%clk 0:00:01.9]} 52... Re1 {[%clk 0:00:01.9]} 53. Rh4+ {[%clk 0:00:02.4]}
53... Kxc5 {[%clk 0:00:01.5]} 54. Rh5+ {[%clk 0:00:01.9]} 1-0

[Event "Early-Titled-Tuesday-Blitz-February-27-2024"]
[Site "Chess.com"]
[Date "2024.02.27"]
[Round "7"]
[White "sorch29"]
[Black "Dewarfd"]
[Result "1-0"]
[WhiteElo "2400"]
[BlackElo "2157"]
[TimeControl "180+1"]
[EndTime "9:17:20 PST"]
[Termination "sorch29 won by resignation"]

1. d4 {[%clk 0:03:00.9]} 1... Nf6 {[%clk 0:02:59.3]} 2. c4 {[%clk 0:03:00.4]}
2... g6 {[%clk 0:02:59.3]} 3. Nc3 {[%clk 0:03:00.2]} 3... d5 {[%clk 0:02:59.2]}
4. Bf4 {[%clk 0:03:00.5]} 4... Bg7 {[%clk 0:02:57.5]} 5. e3 {[%clk 0:03:01]}
5... c6 {[%clk 0:02:56.8]} 6. Nf3 {[%clk 0:02:54.5]} 6... O-O {[%clk 0:02:56.7]}
7. h3 {[%clk 0:02:55]} 7... Be6 {[%clk 0:02:56.4]} 8. Qb3 {[%clk 0:02:53.6]}
8... dxc4 {[%clk 0:02:54.5]} 9. Bxc4 {[%clk 0:02:53.2]} 9... Bxc4 {[%clk
0:02:54.3]} 10. Qxc4 {[%clk 0:02:53.6]} 10... Nbd7 {[%clk 0:02:52.4]} 11. O-O
{[%clk 0:02:52.6]} 11... Nb6 {[%clk 0:02:37.8]} 12. Qb3 {[%clk 0:02:52.5]} 12...
Nfd5 {[%clk 0:02:37]} 13. Bh2 {[%clk 0:02:44.3]} 13... Nxc3 {[%clk 0:02:13.1]}
14. bxc3 {[%clk 0:02:43.7]} 14... Qd5 {[%clk 0:02:13]} 15. Rfe1 {[%clk
0:02:42.3]} 15... e6 {[%clk 0:01:29.4]} 16. e4 {[%clk 0:02:40.9]} 16... Qc4
{[%clk 0:01:28.8]} 17. Rab1 {[%clk 0:02:22.7]} 17... Qxb3 {[%clk 0:01:19.6]} 18.
Rxb3 {[%clk 0:02:21.3]} 18... c5 {[%clk 0:01:15.6]} 19. Bc7 {[%clk 0:02:19.8]}
19... cxd4 {[%clk 0:01:14.9]} 20. cxd4 {[%clk 0:02:19.5]} 20... Nd7 {[%clk
0:01:02.6]} 21. Rxb7 {[%clk 0:02:19.3]} 21... Nf6 {[%clk 0:00:57.4]} 22. Be5
{[%clk 0:01:48.9]} 22... Rfc8 {[%clk 0:00:49.1]} 23. Ng5 {[%clk 0:01:44.5]}
23... Rf8 {[%clk 0:00:43]} 24. a4 {[%clk 0:01:24.5]} 24... h6 {[%clk 0:00:43.1]}
25. Nf3 {[%clk 0:01:23.7]} 25... Rfc8 {[%clk 0:00:43.1]} 26. Bxf6 {[%clk
0:01:10]} 26... Bxf6 {[%clk 0:00:42.5]} 27. e5 {[%clk 0:01:08.1]} 27... Bg7
{[%clk 0:00:39.2]} 28. d5 {[%clk 0:01:00.2]} 28... exd5 {[%clk 0:00:38.5]} 29.
e6 {[%clk 0:01:00.7]} 29... Rf8 {[%clk 0:00:29]} 30. Rd7 {[%clk 0:00:45.8]}
30... d4 {[%clk 0:00:19.1]} 31. Nxd4 {[%clk 0:00:43.9]} 31... fxe6 {[%clk
0:00:18.6]} 32. Rxe6 {[%clk 0:00:40.6]} 32... Rfd8 {[%clk 0:00:15.1]} 33. Red6
{[%clk 0:00:35.4]} 33... Rxd7 {[%clk 0:00:12.7]} 34. Rxd7 {[%clk 0:00:36.3]}
34... Bxd4 {[%clk 0:00:12.6]} 35. Rxd4 {[%clk 0:00:35.7]} 35... Kf7 {[%clk
0:00:12.9]} 36. Rd7+ {[%clk 0:00:32.5]} 36... Ke6 {[%clk 0:00:12.9]} 37. Rb7
{[%clk 0:00:33.2]} 37... h5 {[%clk 0:00:12.5]} 38. a5 {[%clk 0:00:33.6]} 38...
Kf6 {[%clk 0:00:09.9]} 39. a6 {[%clk 0:00:33.8]} 39... Ke6 {[%clk 0:00:10.1]}
40. g3 {[%clk 0:00:34.2]} 40... Kf6 {[%clk 0:00:10.3]} 41. Kg2 {[%clk
0:00:34.6]} 41... Ke6 {[%clk 0:00:10.6]} 42. Kf3 {[%clk 0:00:34.3]} 42... Kf6
{[%clk 0:00:11]} 43. Kf4 {[%clk 0:00:34.6]} 43... Ke6 {[%clk 0:00:08.6]} 44. Kg5
{[%clk 0:00:34.3]} 44... Rf8 {[%clk 0:00:06.1]} 45. f4 {[%clk 0:00:25.3]} 45...
Rf6 {[%clk 0:00:04.3]} 46. g4 {[%clk 0:00:22.2]} 46... hxg4 {[%clk 0:00:04.6]}
47. hxg4 {[%clk 0:00:23.1]} 47... Rf7 {[%clk 0:00:03.3]} 48. Rxf7 {[%clk
0:00:22.6]} 48... Kxf7 {[%clk 0:00:04]} 49. f5 {[%clk 0:00:22.6]} 49... gxf5
{[%clk 0:00:04.5]} 50. Kxf5 {[%clk 0:00:23.3]} 50... Kg7 {[%clk 0:00:03.2]} 51.
Ke6 {[%clk 0:00:24.2]} 51... Kg6 {[%clk 0:00:03.5]} 52. Kd7 {[%clk 0:00:25.1]}
52... Kg5 {[%clk 0:00:04.1]} 53. Kc7 {[%clk 0:00:26]} 53... Kxg4 {[%clk
0:00:05]} 54. Kb7 {[%clk 0:00:26.6]} 54... Kf5 {[%clk 0:00:05.9]} 55. Kxa7
{[%clk 0:00:27.5]} 55... Ke6 {[%clk 0:00:06.3]} 56. Kb7 {[%clk 0:00:28.4]} 56...
Kd7 {[%clk 0:00:07.1]} 57. a7 {[%clk 0:00:29.1]} 57... Kd6 {[%clk 0:00:07.4]}
58. a8=Q {[%clk 0:00:29.9]} 1-0

[Event "Early-Titled-Tuesday-Blitz-February-27-2024"]
[Site "Chess.com"]
[Date "2024.02.27"]
[Round "7"]
[White "Egor_Koshulyan"]
[Black "Zhigalko_Sergei"]
[Result "0-1"]
[WhiteElo "2658"]
[BlackElo "2908"]
[TimeControl "180+1"]
[EndTime "9:17:23 PST"]
[Termination "Zhigalko_Sergei won by checkmate"]

1. f4 {[%clk 0:02:39.8]} 1... d5 {[%clk 0:02:47.4]} 2. Nf3 {[%clk 0:02:17.9]}
2... Nf6 {[%clk 0:02:47.2]} 3. g3 {[%clk 0:02:18.6]} 3... g6 {[%clk 0:02:47.4]}
4. Bg2 {[%clk 0:02:18.8]} 4... Bg7 {[%clk 0:02:48.1]} 5. O-O {[%clk 0:02:19.5]}
5... O-O {[%clk 0:02:48.9]} 6. d3 {[%clk 0:02:20.2]} 6... c5 {[%clk 0:02:45.7]}
7. Ne5 {[%clk 0:02:19.6]} 7... Nfd7 {[%clk 0:02:13.3]} 8. Nxd7 {[%clk
0:02:15.1]} 8... Qxd7 {[%clk 0:02:11.5]} 9. c3 {[%clk 0:01:57.4]} 9... Nc6
{[%clk 0:02:10]} 10. e4 {[%clk 0:01:57.5]} 10... e6 {[%clk 0:01:42.2]} 11. Qe2
{[%clk 0:01:39.2]} 11... b6 {[%clk 0:01:40.9]} 12. f5 {[%clk 0:01:37.1]} 12...
exf5 {[%clk 0:01:30.2]} 13. exf5 {[%clk 0:01:34.3]} 13... Ba6 {[%clk 0:01:05]}
14. Bg5 {[%clk 0:00:44.3]} 14... Rae8 {[%clk 0:00:48.9]} 15. Qf3 {[%clk
0:00:39.5]} 15... Ne5 {[%clk 0:00:24.9]} 16. Qxd5 {[%clk 0:00:39.8]} 16... Bxd3
{[%clk 0:00:16.4]} 17. f6 {[%clk 0:00:39.8]} 17... Bh8 {[%clk 0:00:08.7]} 18.
Qxd7 {[%clk 0:00:38.9]} 18... Nxd7 {[%clk 0:00:08.8]} 19. Rd1 {[%clk 0:00:27.8]}
19... c4 {[%clk 0:00:09.2]} 20. Bh6 {[%clk 0:00:27.3]} 20... Nxf6 {[%clk
0:00:06.1]} 21. Bxf8 {[%clk 0:00:27.5]} 21... Kxf8 {[%clk 0:00:06.4]} 22. Na3
{[%clk 0:00:27.8]} 22... Ng4 {[%clk 0:00:04.2]} 23. Bf1 {[%clk 0:00:24.3]} 23...
Ne5 {[%clk 0:00:02.9]} 24. b3 {[%clk 0:00:18.4]} 24... Bxf1 {[%clk 0:00:01.3]}
25. Kxf1 {[%clk 0:00:18.2]} 25... cxb3 {[%clk 0:00:02.1]} 26. axb3 {[%clk
0:00:18.5]} 26... Ng4 {[%clk 0:00:03]} 27. Rd3 {[%clk 0:00:17.6]} 27... Nxh2+
{[%clk 0:00:02.6]} 28. Kg2 {[%clk 0:00:17.8]} 28... Ng4 {[%clk 0:00:03.2]} 29.
Nb5 {[%clk 0:00:18.2]} 29... a5 {[%clk 0:00:02.7]} 30. Nd6 {[%clk 0:00:18]}
30... Re6 {[%clk 0:00:02.3]} 31. Nc4 {[%clk 0:00:17.6]} 31... h5 {[%clk
0:00:02]} 32. Rf1 {[%clk 0:00:17.2]} 32... Re2+ {[%clk 0:00:02.2]} 33. Kg1
{[%clk 0:00:16.1]} 33... Bf6 {[%clk 0:00:01.4]} 34. Rdf3 {[%clk 0:00:15.3]}
34... Kg7 {[%clk 0:00:01.4]} 35. Nxb6 {[%clk 0:00:15.9]} 35... Rc2 {[%clk
0:00:01.3]} 36. Nd5 {[%clk 0:00:16.1]} 36... Be5 {[%clk 0:00:01.5]} 37. Rxf7+
{[%clk 0:00:17]} 37... Kh6 {[%clk 0:00:02]} 38. Ne7 {[%clk 0:00:17.3]} 38...
Bxc3 {[%clk 0:00:01.5]} 39. Ng8+ {[%clk 0:00:16.7]} 39... Kg5 {[%clk 0:00:01.7]}
40. R7f4 {[%clk 0:00:14.7]} 40... Bd2 {[%clk 0:00:02]} 41. Rc4 {[%clk
0:00:04.2]} 41... Be3+ {[%clk 0:00:02.9]} 42. Rf2 {[%clk 0:00:02.3]} 42... Bxf2+
{[%clk 0:00:02.5]} 43. Kg2 {[%clk 0:00:01.1]} 43... Rxc4 {[%clk 0:00:03.4]} 44.
bxc4 {[%clk 0:00:02]} 44... a4 {[%clk 0:00:03.1]} 45. Kf3 {[%clk 0:00:02.7]}
45... a3 {[%clk 0:00:03.5]} 46. c5 {[%clk 0:00:02.9]} 46... Bxc5 {[%clk
0:00:03.4]} 47. Nf6 {[%clk 0:00:02]} 47... a2 {[%clk 0:00:04.3]} 48. Ne4+ {[%clk
0:00:02.7]} 48... Kh6 {[%clk 0:00:04.5]} 49. Nxc5 {[%clk 0:00:03.3]} 49... a1=Q
{[%clk 0:00:05]} 50. Ne6 {[%clk 0:00:03.5]} 50... Qa3+ {[%clk 0:00:04.9]} 51.
Kf4 {[%clk 0:00:03.7]} 51... Qd6+ {[%clk 0:00:04.8]} 52. Kf3 {[%clk 0:00:04]}
52... Qxe6 {[%clk 0:00:05]} 53. Kg2 {[%clk 0:00:04.9]} 53... Qe2+ {[%clk
0:00:05.1]} 54. Kg1 {[%clk 0:00:03.7]} 54... Qf2+ {[%clk 0:00:05.4]} 55. Kh1
{[%clk 0:00:03.6]} 55... Qh2# {[%clk 0:00:06.3]} 0-1